Workbook

Sheet Sheet3
B2: Applying 2023 Rates
C3: 2021 | D3: 2022 BA | E3: 2022 | F3: 2023
B4: Revenues from Rates | C4: ='2023 Rates'!N52 -> 5059824.733 | D4: ='2023 Rates'!N26 -> 5429578.267 | E4: ='2023 Rates'!N39 -> 5104617.441 | F4: ='2023 Rates'!N13 -> 5177396.706
C5: A | D5: B | E5: C | F5: D
B7: Change in Revenue | D7: =D4-C4 -> 369753.5343 | E7: =E4-C4 -> 44792.7081 | F7: =F4-E4 -> 72779.26526
D8: B - A | E8: C - A | F8: D - C
B10: Growth | D10: =D4/C4-1 -> 0.07307635221 | E10: =E4/C4-1 -> 0.008852620489 | F10: =F4/E4-1 -> 0.01425753567

Sheet 2023 Rates
C3: 2023 Actual Distribution Demand | G3: Current Approved Distribution Rates
A4: Rate Class | C4: Billed Customers or Connections | D4: Billed kWh | E4: Billed kW (if applicable) | G4: Monthly Service Charge | H4: Distribution Volumetric Rate kWh | I4: Distribution Volumetric Rate kW | K4: Service Charge Revenue | L4: Distribution Volumetric Rate Revenue kWh | M4: Distribution Volumetric Rate Revenue kW | N4: Revenues from Rates | P4: Service Charge % Revenue | Q4: Distribution Volumetric Rate % Revenue kWh | R4: Distribution Volumetric Rate % Revenue kW | S4: Total % Revenue
C5: A | D5: B | E5: C | G5: D | H5: E | I5: F | K5: G | L5: H | M5: I | N5: J | P5: K = G / J | Q5: L = H / J | R5: M = I / J | S5: N
A6: RESIDENTIAL | C6: 9825 | D6: 77546268.56 | E6: 0 | G6: 25.57 | H6: 0 | I6: 0 | K6: =G6*C6*12 -> 3014703 | L6: =H6*D6 -> 0 | M6: 0 | N6: =SUM(K6,L6,M6) -> 3014703 | P6: =IF(ISERROR(K6/N6),0,ROUND(K6/N6,3)) -> 1 | Q6: =IF(ISERROR(L6/N6),0,ROUND(L6/N6,3)) -> 0 | R6: =IF(ISERROR(M6/N6),0,ROUND(M6/N6,3)) -> 0 | S6: =N6/N13 -> 0.5822816313
A7: GENERAL SERVICE LESS THAN 50 kW | C7: 1156 | D7: 34628972.1 | E7: 0 | G7: 26.44 | H7: 0.0097 | I7: 0 | K7: 366775.68 | L7: 335901.0294 | M7: 0 | N7: 702676.7094 | P7: 0.522 | Q7: 0.478 | R7: 0 | S7: =N7/N13 -> 0.1357200827
A8: GENERAL SERVICE 50 TO 2,999 KW | C8: 99 | D8: 107355067 | E8: 284403.5 | G8: 96.21 | H8: 0 | I8: 3.8407 | K8: 114297.48 | L8: 0 | M8: 1092308.522 | N8: 1206606.002 | P8: 0.095 | Q8: 0 | R8: 0.905 | S8: =N8/N13 -> 0.2330526461
A9: GENERAL SERVICE 3,000 TO 4,999 KW - INTERMEDIATE USE | C9: 1 | D9: 14360959.71 | E9: 33280.35 | G9: 5761.32 | H9: 0 | I9: 2.1326 | K9: 69135.84 | L9: 0 | M9: 70973.67441 | N9: 140109.5144 | P9: 0.493 | Q9: 0 | R9: 0.507 | S9: =N9/N13 -> 0.02706176914
A10: STREET LIGHTING | C10: 3082 | D10: 1081156.25 | E10: 2932 | G10: 1.95 | H10: 0 | I10: 5.106 | K10: 72118.8 | L10: 0 | M10: 14970.792 | N10: 87089.592 | P10: 0.828 | Q10: 0 | R10: 0.172 | S10: =N10/N13 -> 0.01682111628
A11: SENTINEL LIGHTING | C11: 51 | D11: 43337.42 | E11: 120 | G11: 6.19 | H11: 0 | I11: 14.1048 | K11: 3788.28 | L11: 0 | M11: 1692.576 | N11: 5480.856 | P11: 0.691 | Q11: 0 | R11: 0.309 | S11: =N11/N13 -> 0.001058612332
A12: UNMETERED SCATTERED LOAD | C12: 91 | D12: 621973.33 | E12: 0 | G12: 10.27 | H12: 0.0153 | I12: 0 | K12: 11214.84 | L12: 9516.191949 | M12: 0 | N12: 20731.03195 | P12: 0.541 | Q12: 0.459 | R12: 0 | S12: =N12/N13 -> 0.004004142067
A13: Total | C13: =SUM(C6:C12) -> 14305 | D13: =SUM(D6:D12) -> 235637734.4 | E13: 320735.85 | K13: =SUM(K6:K12) -> 3652033.92 | L13: =SUM(L6:L12) -> 345417.2213 | M13: =SUM(M6:M12) -> 1179945.565 | N13: =SUM(N6:N12) -> 5177396.706 | S13: =SUM(S6:S12) -> 1
C16: 2022 Board-Approved Distribution Demand | G16: Current Approved Distribution Rates
A17: Rate Class | C17: Billed Customers or Connections | D17: Billed kWh | E17: Billed kW (if applicable) | G17: Monthly Service Charge | H17: Distribution Volumetric Rate kWh | I17: Distribution Volumetric Rate kW | K17: Service Charge Revenue | L17: Distribution Volumetric Rate Revenue kWh | M17: Distribution Volumetric Rate Revenue kW | N17: Revenues from Rates | P17: Service Charge % Revenue | Q17: Distribution Volumetric Rate % Revenue kWh | R17: Distribution Volumetric Rate % Revenue kW | S17: Total % Revenue
C18: A | D18: B | E18: C | G18: D | H18: E | I18: F | K18: G | L18: H | M18: I | N18: J | P18: K = G / J | Q18: L = H / J | R18: M = I / J | S18: N
A19: RESIDENTIAL | C19: 9611 | D19: 75290019 | E19: 0 | G19: 25.57 | H19: 0 | I19: 0 | K19: =G19*C19*12 -> 2949039.24 | L19: =H19*D19 -> 0 | M19: =I19*E19 -> 0 | N19: =SUM(K19,L19,M19) -> 2949039.24 | P19: =IF(ISERROR(K19/N19),0,ROUND(K19/N19,3)) -> 1 | Q19: =IF(ISERROR(L19/N19),0,ROUND(L19/N19,3)) -> 0 | R19: =IF(ISERROR(M19/N19),0,ROUND(M19/N19,3)) -> 0 | S19: =N19/N26 -> 0.5431433336
A20: GENERAL SERVICE LESS THAN 50 kW | C20: 1148 | D20: 64580902 | E20: 0 | G20: 26.44 | H20: 0.0097 | I20: 0 | K20: 364237.44 | L20: 626434.7494 | M20: 0 | N20: 990672.1894 | P20: 0.368 | Q20: 0.632 | R20: 0 | S20: =N20/N26 -> 0.1824584048
A21: GENERAL SERVICE 50 TO 2,999 KW | C21: 105 | D21: 107176718 | E21: 282610 | G21: 96.21 | H21: 0 | I21: 3.8407 | K21: 121224.6 | L21: 0 | M21: 1085420.227 | N21: 1206644.827 | P21: 0.1 | Q21: 0 | R21: 0.9 | S21: =N21/N26 -> 0.2222354606
A22: GENERAL SERVICE 3,000 TO 4,999 KW - INTERMEDIATE USE | C22: 1 | D22: 19493265 | E22: 47088 | G22: 5761.32 | H22: 0 | I22: 2.1326 | K22: 69135.84 | L22: 0 | M22: 100419.8688 | N22: 169555.7088 | P22: 0.408 | Q22: 0 | R22: 0.592 | S22: =N22/N26 -> 0.03122815446
A23: STREET LIGHTING | C23: 3159 | D23: 1091871 | E23: 2919 | G23: 1.95 | H23: 0 | I23: 5.106 | K23: 73920.6 | L23: 0 | M23: 14904.414 | N23: 88825.014 | P23: 0.832 | Q23: 0 | R23: 0.168 | S23: =N23/N26 -> 0.01635946838
A24: SENTINEL LIGHTING | C24: 49 | D24: 44683 | E24: 134 | G24: 6.19 | H24: 0 | I24: 14.1048 | K24: 3639.72 | L24: 0 | M24: 1890.0432 | N24: 5529.7632 | P24: 0.658 | Q24: 0 | R24: 0.342 | S24: =N24/N26 -> 0.001018451697
A25: UNMETERED SCATTERED LOAD | C25: 80 | D25: 617799 | E25: 0 | G25: 10.27 | H25: 0.0153 | I25: 0 | K25: 9859.2 | L25: 9452.3247 | M25: 0 | N25: 19311.5247 | P25: 0.511 | Q25: 0.489 | R25: 0 | S25: =N25/N26 -> 0.003556726462
A26: Total | C26: =SUM(C19:C25) -> 14153 | D26: =SUM(D19:D25) -> 268295257 | E26: 332751 | K26: =SUM(K19:K25) -> 3591056.64 | L26: =SUM(L19:L25) -> 635887.0741 | M26: =SUM(M19:M25) -> 1202634.553 | N26: =SUM(N19:N25) -> 5429578.267 | S26: =SUM(S19:S25) -> 1
C29: 2022 Actual Distribution Demand | G29: Current Approved Distribution Rates
A30: Rate Class | C30: Billed Customers or Connections | D30: Billed kWh | E30: Billed kW (if applicable) | G30: Monthly Service Charge | H30: Distribution Volumetric Rate kWh | I30: Distribution Volumetric Rate kW | K30: Service Charge Revenue | L30: Distribution Volumetric Rate Revenue kWh | M30: Distribution Volumetric Rate Revenue kW | N30: Revenues from Rates | P30: Service Charge % Revenue | Q30: Distribution Volumetric Rate % Revenue kWh | R30: Distribution Volumetric Rate % Revenue kW | S30: Total % Revenue
C31: A | D31: B | E31: C | G31: D | H31: E | I31: F | K31: G | L31: H | M31: I | N31: J | P31: K = G / J | Q31: L = H / J | R31: M = I / J | S31: N
A32: RESIDENTIAL | C32: 9601 | D32: 78678458.45 | E32: 0 | G32: 25.57 | H32: 0 | I32: 0 | K32: =G32*C32*12 -> 2945970.84 | L32: =H32*D32 -> 0 | M32: =I32*E32 -> 0 | N32: =SUM(K32,L32,M32) -> 2945970.84 | P32: =IF(ISERROR(K32/N32),0,ROUND(K32/N32,3)) -> 1 | Q32: =IF(ISERROR(L32/N32),0,ROUND(L32/N32,3)) -> 0 | R32: =IF(ISERROR(M32/N32),0,ROUND(M32/N32,3)) -> 0 | S32: =N32/N39 -> 0.577118829
A33: GENERAL SERVICE LESS THAN 50 kW | C33: 1134 | D33: 34760662.89 | E33: 0 | G33: 26.44 | H33: 0.0097 | I33: 0 | K33: 359795.52 | L33: 337178.43 | M33: 0 | N33: 696973.95 | P33: 0.516 | Q33: 0.484 | R33: 0 | S33: =N33/N39 -> 0.13653794
A34: GENERAL SERVICE 50 TO 2,999 KW | C34: 99 | D34: 110503500 | E34: 281729.33 | G34: 96.21 | H34: 0 | I34: 3.8407 | K34: 114297.48 | L34: 0 | M34: 1082037.838 | N34: 1196335.318 | P34: 0.096 | Q34: 0 | R34: 0.904 | S34: =N34/N39 -> 0.2343633645
A35: GENERAL SERVICE 3,000 TO 4,999 KW - INTERMEDIATE USE | C35: 1 | D35: 20808630.27 | E35: 39157.2 | G35: 5761.32 | H35: 0 | I35: 2.1326 | K35: 69135.84 | L35: 0 | M35: 83506.64472 | N35: 152642.4847 | P35: 0.453 | Q35: 0 | R35: 0.547 | S35: =N35/N39 -> 0.02990282553
A36: STREET LIGHTING | C36: 3082 | D36: 1081156.25 | E36: 2932.44 | G36: 1.95 | H36: 0 | I36: 5.106 | K36: 72118.8 | L36: 0 | M36: 14973.03864 | N36: 87091.83864 | P36: 0.828 | Q36: 0 | R36: 0.172 | S36: =N36/N39 -> 0.01706138406
A37: SENTINEL LIGHTING | C37: 51 | D37: 43746.95 | E37: 121.51 | G37: 6.19 | H37: 0 | I37: 14.1048 | K37: 3788.28 | L37: 0 | M37: 1713.874248 | N37: 5502.154248 | P37: 0.689 | Q37: 0 | R37: 0.311 | S37: =N37/N39 -> 0.001077877884
A38: UNMETERED SCATTERED LOAD | C38: 86 | D38: 621059.84 | E38: 0 | G38: 10.27 | H38: 0.0153 | I38: 0 | K38: 10598.64 | L38: 9502.215552 | M38: 0 | N38: 20100.85555 | P38: 0.527 | Q38: 0.473 | R38: 0 | S38: =N38/N39 -> 0.003937779037
A39: Total | C39: =SUM(C32:C38) -> 14054 | D39: =SUM(D32:D38) -> 246497214.6 | E39: 323940.48 | K39: =SUM(K32:K38) -> 3575705.4 | L39: =SUM(L32:L38) -> 346680.6456 | M39: =SUM(M32:M38) -> 1182231.395 | N39: =SUM(N32:N38) -> 5104617.441 | S39: =SUM(S32:S38) -> 1
C42: 2021 Actual Distribution Demand | G42: Current Approved Distribution Rates
A43: Rate Class | C43: Billed Customers or Connections | D43: Billed kWh | E43: Billed kW | G43: Monthly Service Charge | H43: Distribution Volumetric Rate kWh | I43: Distribution Volumetric Rate kW | K43: Service Charge Revenue | L43: Distribution Volumetric Rate Revenue kWh | M43: Distribution Volumetric Rate Revenue kW | N43: Total Revenue By Rate Class | P43: Service Charge % Revenue | Q43: Distribution Volumetric Rate % Revenue kWh | R43: Distribution Volumetric Rate % Revenue kW | S43: Total % Revenue
C44: A | D44: B | E44: C | G44: D | H44: E | I44: F | K44: G | L44: H | M44: I | N44: J | P44: K = G / Jtotal | Q44: L = H / Jtotal | R44: M = I / Jtotal | S44: N
A45: RESIDENTIAL | C45: 9524 | D45: 78651597.46 | G45: 25.57 | H45: 0 | I45: 0 | K45: =G45*C45*12 -> 2922344.16 | L45: =H45*D45 -> 0 | M45: =I45*E45 -> 0 | N45: =SUM(K45,L45,M45) -> 2922344.16 | P45: =IF(ISERROR(K45/N45),0,ROUND(K45/N45,3)) -> 1 | Q45: =IF(ISERROR(L45/N45),0,ROUND(L45/N45,3)) -> 0 | R45: =IF(ISERROR(M45/N45),0,ROUND(M45/N45,3)) -> 0 | S45: =N45/N52 -> 0.5775583769
A46: GENERAL SERVICE LESS THAN 50 kW | C46: 1128 | D46: 33171006.1 | G46: 26.44 | H46: 0.0097 | I46: 0 | K46: 357891.84 | L46: 321758.7592 | M46: 0 | N46: 679650.5992 | P46: 0.527 | Q46: 0.473 | R46: 0 | S46: =N46/N52 -> 0.1343229529
A47: GENERAL SERVICE 50 TO 2,999 KW | C47: 103 | D47: 107887245 | E47: 279167.21 | G47: 96.21 | H47: 0 | I47: 3.8407 | K47: 118915.56 | L47: 0 | M47: 1072197.503 | N47: 1191113.063 | P47: 0.1 | Q47: 0 | R47: 0.9 | S47: =N47/N52 -> 0.2354059926
A48: GENERAL SERVICE 3,000 TO 4,999 KW - INTERMEDIATE USE | C48: 1 | D48: 20432047.5 | E48: 40068 | G48: 5761.32 | H48: 0 | I48: 2.1326 | K48: 69135.84 | L48: 0 | M48: 85449.0168 | N48: 154584.8568 | P48: 0.447 | Q48: 0 | R48: 0.553 | S48: =N48/N52 -> 0.03055142519
A49: STREET LIGHTING | C49: 3082 | D49: 1077951.96 | E49: 2923.53 | G49: 1.95 | H49: 0 | I49: 5.106 | K49: 72118.8 | L49: 0 | M49: 14927.54418 | N49: 87046.34418 | P49: 0.829 | Q49: 0 | R49: 0.171 | S49: =N49/N52 -> 0.01720343071
A50: SENTINEL LIGHTING | C50: 51 | D50: 43703.35 | E50: 121.4 | G50: 6.19 | H50: 0 | I50: 14.1048 | K50: 3788.28 | L50: 0 | M50: 1712.32272 | N50: 5500.60272 | P50: 0.689 | Q50: 0 | R50: 0.311 | S50: =N50/N52 -> 0.001087113292
A51: UNMETERED SCATTERED LOAD | C51: 82 | D51: 619570.36 | G51: 10.27 | H51: 0.0153 | I51: 0 | K51: 10105.68 | L51: 9479.426508 | M51: 0 | N51: 19585.10651 | P51: 0.516 | Q51: 0.484 | R51: 0 | S51: =N51/N52 -> 0.003870708481
A52: Total | C52: =SUM(C45:C51) -> 13971 | D52: =SUM(D45:D51) -> 241883121.7 | E52: 322280.14 | K52: =SUM(K45:K51) -> 3554300.16 | L52: =SUM(L45:L51) -> 331238.1857 | M52: =SUM(M45:M51) -> 1174286.387 | N52: =SUM(N45:N51) -> 5059824.733 | S52: =SUM(S45:S51) -> 1

Sheet 2024 Rates
C3: 2023 Actual Distribution Demand | G3: Current Approved Distribution Rates
A4: Rate Class | C4: Billed Customers or Connections | D4: Billed kWh | E4: Billed kW (if applicable) | G4: Monthly Service Charge | H4: Distribution Volumetric Rate kWh | I4: Distribution Volumetric Rate kW | K4: Service Charge Revenue | L4: Distribution Volumetric Rate Revenue kWh | M4: Distribution Volumetric Rate Revenue kW | N4: Revenues from Rates | P4: Service Charge % Revenue | Q4: Distribution Volumetric Rate % Revenue kWh | R4: Distribution Volumetric Rate % Revenue kW | S4: Total % Revenue
C5: A | D5: B | E5: C | G5: D | H5: E | I5: F | K5: G | L5: H | M5: I | N5: J | P5: K = G / J | Q5: L = H / J | R5: M = I / J | S5: N
A6: RESIDENTIAL | C6: 9825 | D6: 77546268.56 | E6: 0 | G6: 26.8 | K6: =G6*C6*12 -> 3159720 | L6: =H6*D6 -> 0 | M6: 0 | N6: =SUM(K6,L6,M6) -> 3159720 | P6: =IF(ISERROR(K6/N6),0,ROUND(K6/N6,3)) -> 1 | Q6: =IF(ISERROR(L6/N6),0,ROUND(L6/N6,3)) -> 0 | R6: =IF(ISERROR(M6/N6),0,ROUND(M6/N6,3)) -> 0 | S6: =N6/N13 -> 0.5821797114
A7: GENERAL SERVICE LESS THAN 50 kW | C7: 1156 | D7: 34628972.1 | E7: 0 | G7: 27.71 | H7: 0.0102 | K7: 384393.12 | L7: 353215.5154 | M7: 0 | N7: 737608.6354 | P7: 0.521 | Q7: 0.479 | R7: 0 | S7: =N7/N13 -> 0.1359046949
A8: GENERAL SERVICE 50 TO 2,999 KW | C8: 99 | D8: 107355067 | E8: 284403.5 | G8: 100.83 | I8: 4.0251 | K8: 119786.04 | L8: 0 | M8: 1144752.528 | N8: 1264538.568 | P8: 0.095 | Q8: 0 | R8: 0.905 | S8: =N8/N13 -> 0.232991752
A9: GENERAL SERVICE 3,000 TO 4,999 KW - INTERMEDIATE USE | C9: 1 | D9: 14360959.71 | E9: 33280.35 | G9: 6037.86 | I9: 2.235 | K9: 72454.32 | L9: 0 | M9: 74381.58225 | N9: 146835.9022 | P9: 0.493 | Q9: 0 | R9: 0.507 | S9: =N9/N13 -> 0.02705457547
A10: STREET LIGHTING | C10: 3082 | D10: 1081156.25 | E10: 2932 | G10: 2.04 | I10: 5.3511 | K10: 75447.36 | L10: 0 | M10: 15689.4252 | N10: 91136.7852 | P10: 0.828 | Q10: 0 | R10: 0.172 | S10: =N10/N13 -> 0.01679199021
A11: SENTINEL LIGHTING | C11: 51 | D11: 43337.42 | E11: 120 | G11: 6.49 | I11: 14.7818 | K11: 3971.88 | L11: 0 | M11: 1773.816 | N11: 5745.696 | P11: 0.691 | Q11: 0 | R11: 0.309 | S11: =N11/N13 -> 0.001058646855
A12: UNMETERED SCATTERED LOAD | C12: 91 | D12: 621973.33 | E12: 0 | G12: 10.86 | H12: 0.016 | K12: 11859.12 | L12: 9951.57328 | M12: 0 | N12: 21810.69328 | P12: 0.544 | Q12: 0.456 | R12: 0 | S12: =N12/N13 -> 0.00401862922
A13: Total | C13: =SUM(C6:C12) -> 14305 | D13: =SUM(D6:D12) -> 235637734.4 | E13: 320735.85 | K13: =SUM(K6:K12) -> 3827631.84 | L13: =SUM(L6:L12) -> 363167.0887 | M13: =SUM(M6:M12) -> 1236597.351 | N13: =SUM(N6:N12) -> 5427396.28 | S13: =SUM(S6:S12) -> 1
C16: 2022 Board-Approved Distribution Demand | G16: Current Approved Distribution Rates
A17: Rate Class | C17: Billed Customers or Connections | D17: Billed kWh | E17: Billed kW (if applicable) | G17: Monthly Service Charge | H17: Distribution Volumetric Rate kWh | I17: Distribution Volumetric Rate kW | K17: Service Charge Revenue | L17: Distribution Volumetric Rate Revenue kWh | M17: Distribution Volumetric Rate Revenue kW | N17: Revenues from Rates | P17: Service Charge % Revenue | Q17: Distribution Volumetric Rate % Revenue kWh | R17: Distribution Volumetric Rate % Revenue kW | S17: Total % Revenue
C18: A | D18: B | E18: C | G18: D | H18: E | I18: F | K18: G | L18: H | M18: I | N18: J | P18: K = G / J | Q18: L = H / J | R18: M = I / J | S18: N
A19: RESIDENTIAL | C19: 9611 | D19: 75290019 | E19: 0 | G19: 26.8 | K19: =G19*C19*12 -> 3090897.6 | L19: =H19*D19 -> 0 | M19: 0 | N19: =SUM(K19,L19,M19) -> 3090897.6 | P19: =IF(ISERROR(K19/N19),0,ROUND(K19/N19,3)) -> 1 | Q19: =IF(ISERROR(L19/N19),0,ROUND(L19/N19,3)) -> 0 | R19: =IF(ISERROR(M19/N19),0,ROUND(M19/N19,3)) -> 0 | S19: =N19/N26 -> 0.5429590087
A20: GENERAL SERVICE LESS THAN 50 kW | C20: 1148 | D20: 64580902 | E20: 0 | G20: 27.71 | H20: 0.0102 | K20: 381732.96 | L20: 658725.2004 | M20: 0 | N20: 1040458.16 | P20: 0.367 | Q20: 0.633 | R20: 0 | S20: =N20/N26 -> 0.1827708984
A21: GENERAL SERVICE 50 TO 2,999 KW | C21: 105 | D21: 107176718 | E21: 282610 | G21: 100.83 | I21: 4.0251 | K21: 127045.8 | L21: 0 | M21: 1137533.511 | N21: 1264579.311 | P21: 0.1 | Q21: 0 | R21: 0.9 | S21: =N21/N26 -> 0.2221408852
A22: GENERAL SERVICE 3,000 TO 4,999 KW - INTERMEDIATE USE | C22: 1 | D22: 19493265 | E22: 47088 | G22: 6037.86 | I22: 2.235 | K22: 72454.32 | L22: 0 | M22: 105241.68 | N22: 177696 | P22: 0.408 | Q22: 0 | R22: 0.592 | S22: =N22/N26 -> 0.03121476558
A23: STREET LIGHTING | C23: 3159 | D23: 1091871 | E23: 2919 | G23: 2.04 | I23: 5.3511 | K23: 77332.32 | L23: 0 | M23: 15619.8609 | N23: 92952.1809 | P23: 0.832 | Q23: 0 | R23: 0.168 | S23: =N23/N26 -> 0.01632833905
A24: SENTINEL LIGHTING | C24: 49 | D24: 44683 | E24: 134 | G24: 6.49 | I24: 14.7818 | K24: 3816.12 | L24: 0 | M24: 1980.7612 | N24: 5796.8812 | P24: 0.658 | Q24: 0 | R24: 0.342 | S24: =N24/N26 -> 0.001018302538
A25: UNMETERED SCATTERED LOAD | C25: 80 | D25: 617799 | E25: 0 | G25: 10.86 | H25: 0.016 | K25: 10425.6 | L25: 9884.784 | M25: 0 | N25: 20310.384 | P25: 0.513 | Q25: 0.487 | R25: 0 | S25: =N25/N26 -> 0.003567800487
A26: Total | C26: =SUM(C19:C25) -> 14153 | D26: =SUM(D19:D25) -> 268295257 | E26: 332751 | K26: =SUM(K19:K25) -> 3763704.72 | L26: =SUM(L19:L25) -> 668609.9844 | M26: =SUM(M19:M25) -> 1260375.813 | N26: =SUM(N19:N25) -> 5692690.517 | S26: =SUM(S19:S25) -> 1
C29: 2022 Actual Distribution Demand | G29: Current Approved Distribution Rates
A30: Rate Class | C30: Billed Customers or Connections | D30: Billed kWh | E30: Billed kW (if applicable) | G30: Monthly Service Charge | H30: Distribution Volumetric Rate kWh | I30: Distribution Volumetric Rate kW | K30: Service Charge Revenue | L30: Distribution Volumetric Rate Revenue kWh | M30: Distribution Volumetric Rate Revenue kW | N30: Revenues from Rates | P30: Service Charge % Revenue | Q30: Distribution Volumetric Rate % Revenue kWh | R30: Distribution Volumetric Rate % Revenue kW | S30: Total % Revenue
C31: A | D31: B | E31: C | G31: D | H31: E | I31: F | K31: G | L31: H | M31: I | N31: J | P31: K = G / J | Q31: L = H / J | R31: M = I / J | S31: N
A32: RESIDENTIAL | C32: 9601 | D32: 78678458.45 | E32: 0 | G32: 26.8 | K32: =G32*C32*12 -> 3087681.6 | L32: =H32*D32 -> 0 | M32: 0 | N32: =SUM(K32,L32,M32) -> 3087681.6 | P32: =IF(ISERROR(K32/N32),0,ROUND(K32/N32,3)) -> 1 | Q32: =IF(ISERROR(L32/N32),0,ROUND(L32/N32,3)) -> 0 | R32: =IF(ISERROR(M32/N32),0,ROUND(M32/N32,3)) -> 0 | S32: =N32/N39 -> 0.5770164798
A33: GENERAL SERVICE LESS THAN 50 kW | C33: 1134 | D33: 34760662.89 | E33: 0 | G33: 27.71 | H33: 0.0102 | K33: 377077.68 | L33: 354558.7615 | M33: 0 | N33: 731636.4415 | P33: 0.515 | Q33: 0.485 | R33: 0 | S33: =N33/N39 -> 0.1367259772
A34: GENERAL SERVICE 50 TO 2,999 KW | C34: 99 | D34: 110503500 | E34: 281729.33 | G34: 100.83 | I34: 4.0251 | K34: 119786.04 | L34: 0 | M34: 1133988.726 | N34: 1253774.766 | P34: 0.096 | Q34: 0 | R34: 0.904 | S34: =N34/N39 -> 0.234301588
A35: GENERAL SERVICE 3,000 TO 4,999 KW - INTERMEDIATE USE | C35: 1 | D35: 20808630.27 | E35: 39157.2 | G35: 6037.86 | I35: 2.235 | K35: 72454.32 | L35: 0 | M35: 87516.342 | N35: 159970.662 | P35: 0.453 | Q35: 0 | R35: 0.547 | S35: =N35/N39 -> 0.02989482732
A36: STREET LIGHTING | C36: 3082 | D36: 1081156.25 | E36: 2932.44 | G36: 2.04 | I36: 5.3511 | K36: 75447.36 | L36: 0 | M36: 15691.77968 | N36: 91139.13968 | P36: 0.828 | Q36: 0 | R36: 0.172 | S36: =N36/N39 -> 0.01703180326
A37: SENTINEL LIGHTING | C37: 51 | D37: 43746.95 | E37: 121.51 | G37: 6.49 | I37: 14.7818 | K37: 3971.88 | L37: 0 | M37: 1796.136518 | N37: 5768.016518 | P37: 0.689 | Q37: 0 | R37: 0.311 | S37: =N37/N39 -> 0.001077909259
A38: UNMETERED SCATTERED LOAD | C38: 86 | D38: 621059.84 | E38: 0 | G38: 10.86 | H38: 0.016 | K38: 11207.52 | L38: 9936.95744 | M38: 0 | N38: 21144.47744 | P38: 0.53 | Q38: 0.47 | R38: 0 | S38: =N38/N39 -> 0.003951415178
A39: Total | C39: =SUM(C32:C38) -> 14054 | D39: =SUM(D32:D38) -> 246497214.6 | E39: 323940.48 | K39: =SUM(K32:K38) -> 3747626.4 | L39: =SUM(L32:L38) -> 364495.7189 | M39: =SUM(M32:M38) -> 1238992.984 | N39: =SUM(N32:N38) -> 5351115.103 | S39: =SUM(S32:S38) -> 1
C42: 2021 Actual Distribution Demand | G42: Current Approved Distribution Rates
A43: Rate Class | C43: Billed Customers or Connections | D43: Billed kWh | E43: Billed kW | G43: Monthly Service Charge | H43: Distribution Volumetric Rate kWh | I43: Distribution Volumetric Rate kW | K43: Service Charge Revenue | L43: Distribution Volumetric Rate Revenue kWh | M43: Distribution Volumetric Rate Revenue kW | N43: Total Revenue By Rate Class | P43: Service Charge % Revenue | Q43: Distribution Volumetric Rate % Revenue kWh | R43: Distribution Volumetric Rate % Revenue kW | S43: Total % Revenue
C44: A | D44: B | E44: C | G44: D | H44: E | I44: F | K44: G | L44: H | M44: I | N44: J | P44: K = G / Jtotal | Q44: L = H / Jtotal | R44: M = I / Jtotal | S44: N
A45: RESIDENTIAL | C45: 9524 | D45: 78651597.46 | G45: 26.8 | K45: =G45*C45*12 -> 3062918.4 | L45: =H45*D45 -> 0 | M45: 0 | N45: =SUM(K45,L45,M45) -> 3062918.4 | P45: =IF(ISERROR(K45/N45),0,ROUND(K45/N45,3)) -> 1 | Q45: =IF(ISERROR(L45/N45),0,ROUND(L45/N45,3)) -> 0 | R45: =IF(ISERROR(M45/N45),0,ROUND(M45/N45,3)) -> 0 | S45: =N45/N52 -> 0.5774612665
A46: GENERAL SERVICE LESS THAN 50 kW | C46: 1128 | D46: 33171006.1 | G46: 27.71 | H46: 0.0102 | K46: 375082.56 | L46: 338344.2622 | M46: 0 | N46: 713426.8222 | P46: 0.526 | Q46: 0.474 | R46: 0 | S46: =N46/N52 -> 0.1345045158
A47: GENERAL SERVICE 50 TO 2,999 KW | C47: 103 | D47: 107887245 | E47: 279167.21 | G47: 100.83 | I47: 4.0251 | K47: 124625.88 | L47: 0 | M47: 1123675.937 | N47: 1248301.817 | P47: 0.1 | Q47: 0 | R47: 0.9 | S47: =N47/N52 -> 0.2353461157
A48: GENERAL SERVICE 3,000 TO 4,999 KW - INTERMEDIATE USE | C48: 1 | D48: 20432047.5 | E48: 40068 | G48: 6037.86 | I48: 2.235 | K48: 72454.32 | L48: 0 | M48: 89551.98 | N48: 162006.3 | P48: 0.447 | Q48: 0 | R48: 0.553 | S48: =N48/N52 -> 0.03054353756
A49: STREET LIGHTING | C49: 3082 | D49: 1077951.96 | E49: 2923.53 | G49: 2.04 | I49: 5.3511 | K49: 75447.36 | L49: 0 | M49: 15644.10138 | N49: 91091.46138 | P49: 0.828 | Q49: 0 | R49: 0.172 | S49: =N49/N52 -> 0.01717374863
A50: SENTINEL LIGHTING | C50: 51 | D50: 43703.35 | E50: 121.4 | G50: 6.49 | I50: 14.7818 | K50: 3971.88 | L50: 0 | M50: 1794.51052 | N50: 5766.39052 | P50: 0.689 | Q50: 0 | R50: 0.311 | S50: =N50/N52 -> 0.001087155039
A51: UNMETERED SCATTERED LOAD | C51: 82 | D51: 619570.36 | G51: 10.86 | H51: 0.016 | K51: 10686.24 | L51: 9913.12576 | M51: 0 | N51: 20599.36576 | P51: 0.519 | Q51: 0.481 | R51: 0 | S51: =N51/N52 -> 0.003883660708
A52: Total | C52: =SUM(C45:C51) -> 13971 | D52: =SUM(D45:D51) -> 241883121.7 | E52: 322280.14 | K52: =SUM(K45:K51) -> 3725186.64 | L52: =SUM(L45:L51) -> 348257.388 | M52: =SUM(M45:M51) -> 1230666.529 | N52: =SUM(N45:N51) -> 5304110.557 | S52: =SUM(S45:S51) -> 1
